Cogmind - Beta 16.1 @@@ ROGUE MODE // 2026.04.08 @ 14:42:17 Player: microsand Result: Destroyed by H-61 Shepherd with Heavy Assault Cannon Performance ------------- Evolutions (4) 2000 Regions Visited (7) 1400 Robots Destroyed (21) 105 Value Destroyed (464) 464 Prototype IDs (2) 40 Alien Tech Used (0) 0 Bonus (800) 800 TOTAL SCORE: 4809 Bonus ------- Entered DSFs 500 Registered with UFD 300 Cogmind --------- Core Integrity 0/850 Matter 300/300 Energy 100/100 System Corruption 0% Temperature Cool (9) Movement Core (400) Ox7 Location -6/DSF Parts ------- > --- POWER (2) -------- (None) > --- PROPULSION (4) --- (None) > --- UTILITY (5) ------ Large Storage Unit A0-MCA's Component Scanner > --- WEAPON (4) ------- Companion Sword > --- INVENTORY (15) --- Heat Sink Small Storage Unit Medium Laser Peak State ------------ > --- POWER ------------ Deuterium Engine > --- PROPULSION ------- Light Treads Improved Treads Advanced Treads > --- UTILITY ---------- Improved Heat Sink Large Storage Unit Hardened Medium Armor Plating A0-MCA's Component Scanner > --- WEAPON ----------- Medium Laser Plasma Cannon Gauss Rifle Companion Sword > --- INVENTORY -------- Heat Sink Small Storage Unit Medium Laser [Rating: 40] Favorites ----------- Power Ion Engine Engine Ion Engine Power Core Fusion Compressor Propulsion Light Treads Treads Light Treads Utility Small Storage Unit Device Heat Sink Storage Small Storage Unit Processor A0-MCA's Component Scanner Protection Hardened Medium Armor Plating Weapon Medium Laser Energy Gun Medium Laser Energy Cannon Ion Cannon Ballistic Gun Gauss Rifle Slashing Weapon Companion Sword Build | -11 -10 -10 -10 -8 -8 -6 -6 ------- Run | Yrd Mat Min Sub Rec Scr Fac DSF Slots Evolved 8 | . . . . . . 8 . Power 1 | . . . . . . 1 . Propulsion 2 | . . . . . . 2 . Utility 3 | . . . . . . 3 . Weapon 2 | . . . . . . 2 . Parts Attached 24 | 7 3 . 1 2 7 3 1 Power 4 | 1 . . 1 . 2 . . Engine 3 | 1 . . 1 . 1 . . Core 1 | . . . . . 1 . . Reactor . | . . . . . . . . Propulsion 4 | 2 . . . . 2 . . Treads 4 | 2 . . . . 2 . . Leg . | . . . . . . . . Wheel . | . . . . . . . . Hover . | . . . . . . . . Flight . | . . . . . . . . Utility 7 | 2 1 . . 1 1 2 . Device 3 | 1 1 . . . . 1 . Storage 2 | 1 . . . . 1 . . Processor 1 | . . . . . . 1 . Hackware . | . . . . . . . . Protection 1 | . . . . 1 . . . Artifact . | . . . . . . . . Weapon 9 | 2 2 . . 1 2 1 1 Energy Gun 5 | 2 2 . . 1 . . . Energy Cannon 2 | . . . . . 1 1 . Ballistic Gun 1 | . . . . . . . 1 Ballistic Cannon . | . . . . . . . . Launcher . | . . . . . . . . Special Weapon . | . . . . . . . . Impact Weapon . | . . . . . . . . Slashing Weapon 1 | . . . . . 1 . . Piercing Weapon . | . . . . . . . . Special Melee Weapon . | . . . . . . . . Unidentified Prototypes 1 | . . . . . 1 . . Parts Lost 11 | . . . 2 . . . 9 Power 1 | . . . . . . . 1 Propulsion 4 | . . . 1 . . . 3 Utility 2 | . . . . . . . 2 Weapon 4 | . . . 1 . . . 3 Highest Loss Streak 8 | . . . 1 . . . 8 To Critical Strikes . | . . . . . . . . Average Backups 5 | 1 5 8 5 5 6 4 3 Power . | . . 1 1 1 . . . Propulsion . | . . 1 1 1 1 1 . Utility 2 | . 2 2 1 1 2 2 2 Weapon 2 | . 2 4 2 2 2 1 1 Tool/Special . | . . . . . . . . Unused Backups 8 | 1 1 . 2 . 3 . 1 Power . | . . . . . . . . Propulsion 1 | . . . . . 1 . . Utility 5 | 1 1 . 2 . 1 . . Weapon 2 | . . . . . 1 . 1 Tool/Special . | . . . . . . . . Average Slot Usage (%) 91 | . 100 100 90 75 97 71 58 Engine 13 | . 14 14 14 14 13 6 4 Treads 22 | . 28 28 20 14 26 13 10 Device 4 | . 14 14 14 2 . 5 4 Storage 13 | . 14 14 14 14 14 6 6 Protection 9 | . . . . 11 14 6 3 Energy Gun 17 | . 28 28 26 18 14 5 4 Energy Cannon 3 | . . . . . 5 13 5 Slashing Weapon 4 | . . . . . 7 6 6 Peak Build Rating 40 | 7 7 7 7 9 23 39 40 Average Rating 14 | 5 7 7 6 7 17 37 31 On Entrance 12 | . 7 7 7 5 9 23 39 Avg Prop Armor Cover (%) . | . . . . . . . . Naked Turns . | . . . . . . . . Heaviest Build 57 | 15 15 15 15 23 47 57 57 Greatest Support 65 | 40 40 40 40 20 45 65 65 Greatest Overweight (x) 15 | 1 . . . 1 1 1 15 Average Overweight (x) . | . . . . . . . 2 Largest Inventory Capacity 15 | 8 8 8 8 8 15 15 15 Average Capacity 9 | 6 8 8 8 8 10 15 15 Most Carried 8 | 2 8 8 8 8 8 7 4 Average Carried 6 | 1 5 8 6 6 7 4 3 Final Capacity 15 | 8 8 8 8 8 15 15 15 Final Carried 8 | 1 8 8 6 7 8 3 3 Class Distribution -------------------- 93% | Mutant 5% | Tank Dominant Class ---------------- Mutant | -10/Materials Mutant | -10/Mines Mutant | -10/Subcaves Mutant | -8/Recycling Mutant | -8/Scraptown Tank | -6/Factory Mutant | -6/DSF Resources | -11 -10 -10 -10 -8 -8 -6 -6 ----------- Run | Yrd Mat Min Sub Rec Scr Fac DSF Matter Collected 468 | 256 44 . 5 . 60 . 103 Remotely . | . . . . . . . . Salvage Created 761 | 135 365 . 31 107 . . 123 Parts 49 | 13 24 . 2 7 . . 3 Haulers Intercepted . | . . . . . . . . Recyclers Shooed 2 | 1 1 . . . . . . Parts Field Recycled . | . . . . . . . . Retrieved Matter . | . . . . . . . . Parts Self-Destructed 7 | . . . 7 . . . . Prevented . | . . . . . . . . Parts Restored . | . . . . . . . . Kills | -11 -10 -10 -10 -8 -8 -6 -6 ------- Run | Yrd Mat Min Sub Rec Scr Fac DSF Combat Hostiles Destroyed 12 | . 6 . 2 2 . . 2 Guns 10 | . 6 . 2 2 . . . Cannons 1 | . . . . . . . 1 Classes Destroyed 9 | 2 5 . . 1 . . 1 Builder 2 | . 2 . . . . . . Tunneler 3 | 3 . . . . . . . Recycler 2 | 1 1 . . . . . . Operator 1 | . 1 . . . . . . Watcher 1 | . 1 . . . . . . Swarmer 5 | . 3 . 2 . . . . Grunt 3 | . 3 . . . . . . Sentry 2 | . . . . 2 . . . Specialist 2 | . . . . . . . 2 Best Kill Streak 4 | 2 4 . 2 1 . . 1 Combat Bots Only 3 | . 3 . 2 1 . . 1 Max Kills in Single Turn 2 | 1 2 . 1 1 . . 1 Gunslinging . | . . . . . . . . Exploded . | . . . . . . . . Melee . | . . . . . . . . Uniques/NPCs Destroyed . | . . . . . . . . Combat | -11 -10 -10 -10 -8 -8 -6 -6 -------- Run | Yrd Mat Min Sub Rec Scr Fac DSF Hostile Shots Fired 172 | . 32 . 8 8 . . 124 Missed 48 | . 5 . 3 3 . . 37 Hits 124 | . 27 . 5 5 . . 87 Projectile 124 | . 27 . 5 5 . . 87 AOE 1 | . . . 1 . . . . Critical Strikes 4 | . . . . 1 . . 3 Damage Taken 2641 | 39 319 . 179 72 . . 2032 Core 971 | . 75 . 11 29 . . 856 Absorbed by Shields . | . . . . . . . . Core Remaining (%) 77 | 100 . . . . 54 . . Volleys Fired 64 | 7 34 . 2 14 . . 7 Largest 3 | 2 2 . 2 1 . . 3 Hottest 190 | 90 100 . 100 50 . . 190 Shots Fired 118 | 14 68 . 4 14 . . 18 Gun 112 | 14 68 . 4 14 . . 12 Cannon 6 | . . . . . . . 6 Launcher . | . . . . . . . . Special . | . . . . . . . . Kinetic 5 | . . . . . . . 5 Thermal 80 | 7 42 . 4 14 . . 13 Explosive . | . . . . . . . . Electromagnetic 33 | 7 26 . . . . . . Robot Hit Streak 12 | 8 7 . 4 5 . . 12 Robot Miss Streak 5 | 1 5 . 3 4 . . 3 Penetration Max 1 | . . . . . . . 1 Secondary Targets 2 | . 1 . 1 . . . . Max Gunslinging Chain 1 | . 1 . 1 . . . . Shots Hit Robots 70 | 11 34 . 1 10 . . 14 Core Hits 32 | 5 16 . 2 6 . . 3 Critical Kills 1 | . . . . . . . 1 Critical Parts Destroyed . | . . . . . . . . Critical Strikes 5 | . 2 . 1 1 . . 1 Burn 4 | . 2 . 1 1 . . . Meltdown 1 | . . . . . . . 1 Melee Attacks . | . . . . . . . . Impact . | . . . . . . . . Slashing . | . . . . . . . . Piercing . | . . . . . . . . Sneak Attacks . | . . . . . . . . Combat Hostiles . | . . . . . . . . Follow-up Attacks . | . . . . . . . . Damage Inflicted 1171 | 171 560 . 24 127 . . 289 Guns 957 | 131 483 . 24 127 . . 192 Cannons 97 | . . . . . . . 97 Explosions 117 | 40 77 . . . . . . Melee . | . . . . . . . . Ramming . | . . . . . . . . Kinetic 117 | . . . . . . . 117 Thermal 789 | 103 363 . 24 127 . . 172 Explosive . | . . . . . . . . Electromagnetic 265 | 68 197 . . . . . . Impact . | . . . . . . . . Slashing . | . . . . . . . . Piercing . | . . . . . . . . Highest Corruption . | . . . . . . . . Average Corruption . | . . . . . . . . Corruption Purged . | . . . . . . . . Corruption Blocked . | . . . . . . . . Overload Shots . | . . . . . . . . Overflow Damage . | . . . . . . . . Projectiles . | . . . . . . . . Explosions . | . . . . . . . . Melee . | . . . . . . . . Knockbacks . | . . . . . . . . Impact . | . . . . . . . . Kinetic . | . . . . . . . . Secondary . | . . . . . . . . Self-Inflicted Damage 39 | 39 . . . . . . . Shots 1 | 1 . . . . . . . Rammed . | . . . . . . . . Targets Rammed . | . . . . . . . . Kicked . | . . . . . . . . Crushed . | . . . . . . . . Highest Temperature 301 | 90 301 . . 107 . . 27 Average Temperature 101 | 35 140 . . 32 . . 11 Received Heat Transfer 429 | . 153 . 24 45 . . 207 Effects 2 | . 2 . . . . . . Energy Bleed 2 | . 2 . . . . . . Siege Activations . | . . . . . . . . Martial Activations . | . . . . . . . . Shielding Activations . | . . . . . . . . Robots Disrupted . | . . . . . . . . Combat Hostiles . | . . . . . . . . Robots Corrupted . | . . . . . . . . Combat Hostiles . | . . . . . . . . Parts Fried . | . . . . . . . . Impact Corruptions . | . . . . . . . . Robots Melted 1 | . . . . . . . 1 Combat Hostiles 1 | . . . . . . . 1 Parts Melted 7 | . 1 . 1 1 . . 4 Heat Transferred 2335 | 235 1099 . 148 444 . . 409 Parts Sabotaged . | . . . . . . . . Parts Stolen . | . . . . . . . . Parts Stripped . | . . . . . . . . Power Chain Reactions 2 | 1 1 . . . . . . Alert | -11 -10 -10 -10 -8 -8 -6 -6 ------- Run | Yrd Mat Min Sub Rec Scr Fac DSF Maximum Alert Level . | . . . . . . . . Low Security (%) 100 | 100 100 100 . 100 . 100 100 Level 1 . | . . . . . . . . Level 2 . | . . . . . . . . Level 3 . | . . . . . . . . Level 4 . | . . . . . . . . Level 5 . | . . . . . . . . High Security . | . . . . . . . . Max Security . | . . . . . . . . Peak Influence 127 | 5 127 . . 21 . 2 45 Initial 21 | . . . . 21 . . . Average 17 | . 48 . . 2 . . 17 Influence Increases 403 | 20 201 . 85 40 . 2 55 Destroy 0b10 Robot/C 240 | . 120 . 40 40 . . 40 Destroy 0b10 Robot/NC 45 | 20 25 . . . . . . Destroy Leader 32 | . 32 . . . . . . Successful Hack 6 | . 4 . . . . 2 . Disable Machine 15 | . 15 . . . . . . Destroy Structure 5 | . 5 . . . . . . Lose Combat Pursuer 60 | . . . 45 . . . 15 Influence Decreases 403 | 20 201 . 40 85 . 2 55 Entered New Map 24 | . . . . 24 . . . Time Decay 314 | 20 201 . 30 61 . 2 . Lost Part 65 | . . . 10 . . . 55 Squads Dispatched 3 | . 2 . . . . . 1 Investigation 1 | . 1 . . . . . . Extermination . | . . . . . . . . Reinforcement 2 | . 1 . . . . . 1 Assault . | . . . . . . . . Garrison . | . . . . . . . . Intercept . | . . . . . . . . Searches Triggered . | . . . . . . . . Construction Impeded . | . . . . . . . . Haulers Reinforced . | . . . . . . . . Active Scanning Responses . | . . . . . . . . Cargo Convoy Interrupts . | . . . . . . . . Stealth | -11 -10 -10 -10 -8 -8 -6 -6 --------- Run | Yrd Mat Min Sub Rec Scr Fac DSF Distress Signals 1 | . 1 . . . . . . Communications Jammed . | . . . . . . . . Distress Signals . | . . . . . . . . Times Spotted 31 | . 10 . 10 2 . . 9 Peak Tracking Total 6 | . 4 . 4 1 . . 6 Tactical Retreats 3 | . . . 2 . . . 1 Traps | -11 -10 -10 -10 -8 -8 -6 -6 ------- Run | Yrd Mat Min Sub Rec Scr Fac DSF Traps Triggered 1 | . 1 . . . . . . Indirectly . | . . . . . . . . Trap Hack Attempts . | . . . . . . . . Triggered . | . . . . . . . . Disarmed . | . . . . . . . . Reprogrammed . | . . . . . . . . Reused . | . . . . . . . . Traps Extracted . | . . . . . . . . Installed . | . . . . . . . . Triggered . | . . . . . . . . Machines | -11 -10 -10 -10 -8 -8 -6 -6 ---------- Run | Yrd Mat Min Sub Rec Scr Fac DSF Machines Disabled 1 | . 1 . . . . . . Max in Single Turn 1 | . 1 . . . . . . Machines Repaired . | . . . . . . . . Machines Dismantled . | . . . . . . . . Machines Sabotaged . | . . . . . . . . Overloaded Fab Kills . | . . . . . . . . Hacking | -11 -10 -10 -10 -8 -8 -6 -6 --------- Run | Yrd Mat Min Sub Rec Scr Fac DSF Machines Accessed 6 | . 3 . . . 1 2 . Terminals 4 | . 3 . . . . 1 . Fabricators . | . . . . . . . . Repair Stations . | . . . . . . . . Recycling Units . | . . . . . . . . Scanalyzers 1 | . . . . . . 1 . Garrison Access . | . . . . . . . . Total Hacks 20 | . 10 . . . 2 8 . Successful 13 | . 5 . . . 2 6 . Failed 6 | . 5 . . . . 1 . Catastrophic . | . . . . . . . . Database Lockouts 1 | . . . . . . 1 . Manual 10 | . 8 . . . . 2 . Terminals 11 | . 10 . . . . 1 . Fabricators . | . . . . . . . . Repair Stations . | . . . . . . . . Recycling Units . | . . . . . . . . Scanalyzers 7 | . . . . . . 7 . Garrison Access . | . . . . . . . . Terminal Hacks 5 | . 2 . . . 2 1 . Record 1 | . . . . . 1 . . Robot Analysis 1 | . 1 . . . . . . Open Door 1 | . . . . . 1 . . Open DSF 1 | . . . . . . 1 . Terminal Index 1 | . 1 . . . . . . Fabricator Hacks . | . . . . . . . . Repair Station Hacks . | . . . . . . . . Recycling Unit Hacks . | . . . . . . . . Scanalyzer 5 | . . . . . . 5 . Insert Component 2 | . . . . . . 2 . Analyze 2 | . . . . . . 2 . Retrieve Study 1 | . . . . . . 1 . Garrison Access Hacks . | . . . . . . . . Unauthorized Hacks 3 | . 3 . . . . . . Terminals 3 | . 3 . . . . . . Botnet 3 | . 3 . . . . . . Fabricators . | . . . . . . . . Repair Stations . | . . . . . . . . Recycling Units . | . . . . . . . . Scanalyzers . | . . . . . . . . Garrison Access . | . . . . . . . . Data Cores Recovered . | . . . . . . . . Used . | . . . . . . . . Hacking Detections 3 | . 3 . . . . . . Full Trace Events . | . . . . . . . . Feedback Events . | . . . . . . . . Feedback Blocked . | . . . . . . . . Robot Schematics Acquired . | . . . . . . . . Robots Built . | . . . . . . . . Authchips . | . . . . . . . . Time . | . . . . . . . . Total Robot Build Rating . | . . . . . . . . Part Schematics Acquired 1 | . . . . . . 1 . Parts Built . | . . . . . . . . Authchips . | . . . . . . . . Time . | . . . . . . . . Total Part Build Rating . | . . . . . . . . Part Studies Acquired 1 | . . . . . . 1 . Parts Repaired . | . . . . . . . . Time . | . . . . . . . . Parts Recycled . | . . . . . . . . Recycled Matter . | . . . . . . . . Retrieved Matter . | . . . . . . . . Retrieved Components . | . . . . . . . . Parts Scanalyzed 2 | . . . . . . 2 . Part Schematics Acquired 1 | . . . . . . 1 . Parts Damaged . | . . . . . . . . Bothacking | -11 -10 -10 -10 -8 -8 -6 -6 ------------ Run | Yrd Mat Min Sub Rec Scr Fac DSF Used RIF Installer . | . . . . . . . . Robots Hacked . | . . . . . . . . Non-combat . | . . . . . . . . Combat . | . . . . . . . . Robot Hacks Applied . | . . . . . . . . Relay Couplers Released . | . . . . . . . . Fabnet Peak Effective % . | . . . . . . . . Robots Rewired . | . . . . . . . . Allies Hacked . | . . . . . . . . Hacks Repelled . | . . . . . . . . Allies | -11 -10 -10 -10 -8 -8 -6 -6 -------- Run | Yrd Mat Min Sub Rec Scr Fac DSF Total Allies . | . . . . . . . . Largest Group . | . . . . . . . . Highest-Rated Group . | . . . . . . . . Highest-Rated Ally . | . . . . . . . . Initial UFD Resources 24 | . . . . . . 24 24 Total Orders . | . . . . . . . . Ally Attacks . | . . . . . . . . Total Damage . | . . . . . . . . Kills . | . . . . . . . . Allies Corrupted . | . . . . . . . . Allies Melted . | . . . . . . . . Intel | -11 -10 -10 -10 -8 -8 -6 -6 ------- Run | Yrd Mat Min Sub Rec Scr Fac DSF Active Infowar (turns) 261 | 12 249 . . . . . . Seismic 261 | 12 249 . . . . . . Robot Analysis Total 1 | . 1 . . . . . . Derelict Logs Recovered 1 | . . 1 . . . . . Drone Launches . | . . . . . . . . Drone Recoveries . | . . . . . . . . Exploration | -11 -10 -10 -10 -8 -8 -6 -6 ------------- Run | Yrd Mat Min Sub Rec Scr Fac DSF Turns Passed 3983 | 184 600 155 105 649 1949 158 183 Spaces Moved 2029 | 97 298 62 55 338 1047 69 63 Core 22 | 9 . . . . . . 13 Treads 2007 | 88 298 62 55 338 1047 69 50 Legs . | . . . . . . . . Wheels . | . . . . . . . . Hover . | . . . . . . . . Flight . | . . . . . . . . Fastest Speed 50 | 50 160 160 160 160 152 155 155 Average Speed 180 | 152 160 160 160 182 184 220 249 Slowest Speed 800 | 160 160 160 160 240 240 232 800 Overloaded Moves . | . . . . . . . . Propulsion Burnouts . | . . . . . . . . Robots Hopped . | . . . . . . . . Potential Cave-ins 2 | . . . 2 . . . . Cave-ins Triggered . | . . . . . . . . Exploration Rate (%) 33 | 6 34 17 6 55 75 2 70 Regions Visited 7 Branch Regions 4 Pre-discovered Areas . | . . . . . . . . Known Exits Taken 1 | . . . . . . 1 . Unknown Exits Taken 6 | 1 1 1 1 1 1 . . Scrap Searched 3 | . . 1 . . 2 . . Spaces Dug . | . . . . . . . . Terrain Destroyed 7 | 3 4 . . . . . . Melee . | . . . . . . . . Projectile . | . . . . . . . . AOE 7 | 3 4 . . . . . . Terrain Rammed . | . . . . . . . . Walls Destroyed . | . . . . . . . . Machines Disabled . | . . . . . . . . Actions | -11 -10 -10 -10 -8 -8 -6 -6 --------- Run | Yrd Mat Min Sub Rec Scr Fac DSF Total 2240 | 120 353 118 70 357 1074 75 73 Wait 77 | . 8 57 8 . 3 . 1 Move 2022 | 96 297 61 54 337 1046 68 63 Hop . | . . . . . . . . Pick Up 32 | 9 9 . 1 2 10 . 1 Fast Attach . | . . . . . . . . Attach 18 | 7 . . . 1 3 6 1 Detach 1 | . . . . . . 1 . Swap 9 | . 3 . 1 1 4 . . Drop 14 | 1 2 . 4 . 7 . . Fire 64 | 7 34 . 2 14 . . 7 Melee . | . . . . . . . . Ram . | . . . . . . . . Kick . | . . . . . . . . Crush . | . . . . . . . . Escape Stasis . | . . . . . . . . Rewire 3 | . . . . 2 1 . . Trap . | . . . . . . . . Miscellaneous . | . . . . . . . . Route ------- -11/Scrapyard -10/Materials -10/Mines -10/Subcaves -8/Recycling (discovered 2 exits: *Fac / *Scr) -8/Scraptown (discovered 2 exits: *Fac x2) -6/Factory -6/DSF (discovered 1 exit: [*Fac]) History --------- Turn | Location | Event 3 | -11/Scrapyard | Discovered new exit (range 16) 185 | -11/Scrapyard | Entered Materials 308 | -10/Materials | Build established: Mutant 749 | -10/Materials | Discovered new exit (range 16) 785 | -10/Materials | Entered Mines 822 | -10/Mines | Learned Materials terminal intel 898 | -10/Mines | Met a Derelict bent on vengeance 928 | -10/Mines | Discovered new exit (range 4) 940 | -10/Mines | Entered Subcaves 1002 | -10/Subcaves | Discovered new exit (range 7) 1027 | -10/Subcaves | Shifting Twisted Machinery released Sub. Monowheel 1045 | -10/Subcaves | Entered Recycling 1435 | -8/Recycling | Discovered new exit (range 16) 1627 | -8/Recycling | Scanned before Scraplab entrance 1663 | -8/Recycling | Entered Scraplab 1687 | -8/Recycling | Discovered new exit (range 3) 1694 | -8/Recycling | Entered Scraptown 2086 | -8/Scraptown | Discovered new exit (range 11) 2349 | -8/Scraptown | Visited Scrapoid Research Area 2412 | -8/Scraptown | Visited The Evicted 2493 | -8/Scraptown | Visited CPS Storage 2543 | -8/Scraptown | Visited UFD Registry 2543 | -8/Scraptown | Registered with UFD as "Hellwarp" 2604 | -8/Scraptown | Visited Sword Containment 2623 | -8/Scraptown | Found Prototype Slashing Weapon 2637 | -8/Scraptown | Identified Companion Sword 2697 | -8/Scraptown | Visited Abandonware Association 2713 | -8/Scraptown | Learned abandonware demo "OVRCLOCK.EXE" 2761 | -8/Scraptown | Visited DA-N13 Charitable Foundation 2790 | -8/Scraptown | Found DCF Scrap (26 items) 2863 | -8/Scraptown | Visited Derelict Rescue Squad 2906 | -8/Scraptown | Visited Chapter 10 2943 | -8/Scraptown | Visited A0-MCA Data Center 2952 | -8/Scraptown | Given a B+ rating by A0-MCA 2991 | -8/Scraptown | Found A0-MCA's Component Scanner 3622 | -8/Scraptown | Discovered new exit (range 5) 3643 | -8/Scraptown | Entered Factory 3643 | -6/Factory | Evolved 8 slots: Power x1, Propulsion x2, Utility x3, Weapon x2 3725 | -6/Factory | Central database locked down 3801 | -6/Factory | Identified exit to DSF 3801 | -6/Factory | Entered DSF 3834 | -6/DSF | Discovered new exit (range 15) 3847 | -6/DSF | Additional patrols routed to DSF 3956 | -6/DSF | Core integrity fell below 50% 3973 | -6/DSF | Core integrity fell below 20% 3984 | -6/DSF | Destroyed by H-61 Shepherd with Heavy Assault Cannon Last Messages --------------- 03919_ Plasma Cannon destroyed. 03930_ Deuterium Engine destroyed. 03931_ Slug penetrates H-61 Shepherd. 03932_ H-61 Shepherd calls for reinforcements. 03932_ ALERT: Hostile activity reported, dispatching reinforcements to area. 03932_ C-30 ARC bursts open, deploying its payload. 03932_ S-27 Virus unfolds itself. 03934_ Slug penetrates H-61 Shepherd. 03937_ Med. Laser destroyed. 03941_ Imp. Heat Sink destroyed. 03955_ Penetrated by Slug. 03955_ Knocked back. 03956_ S-27 Virus destroyed. 03958_ Gauss Rifle destroyed. 03967_ Penetrated by Slug. 03967_ Knocked back. 03974_ Critical hit (Burn: +37). 03978_ Knocked back. Map ----- +----------------------------------------------------+ | ????????????????????????????????????????????????? | | ????????????????????????????????????????????????? | | ????????????????????????????????????????????????? | | ????????????????????????????????????????????????? | | ?????????????????????????????????????#""????????? | | ?????????????????????????????????????#"#????????? | | ????????????????????????????????????##"####?????? | | ????????????????????????????????###?#"""""#?????? | | ??????????????????????? #!!!#!!##"""""#?????? | | ??????????????????????? ""##"???? | | ??????????????????????? = """""???? | | ??????????????????????? ?## # ## ""###???? | | ??????????????????????# #?????#???## ###?????? | | ??????????????????????! !????????### ##??????? | | ??????????????????????! !????????#!! !#??????? | | ??????????????????????! !????????#!! !#??????? | | ?????????????????????## ##???????### ##??????? | | ?????????????????????!! !????????#!! !#??????? | | ??????????????????????! !????????#!! !#??????? | | ??????????????????????! !????????#!! !#??????? | | ????????????????###???# #?#?######## ###?????? | | ????????????#[??#!!!?## ###!!!# ## #?????? | | ?????????? ##[[[#!!!##A A##!!!# ## #?????? | | ????????? ^ H ^]% ##????? | | ????????? ^ "#????? | | ????????? ^ @ ^ ##????? | | ????????????????#]]]##A A##!!!#[[[## % #?????? | | ?????????????????????## ;##!!?#[[[?# #?????? | | ????????????????????### ;;#???###### ###?????? | | ????????????????????#!! !!;#?????# [#??????? | | ????????????????????#!! %g!##?????# #??????? | | ????????????????????#!! ss!!#??????# [#??????? | | ????????????????????### ;%#??????### ##??????? | | ????????????????????# %||;#?????# #??????? | | ????????????????????# g %||##?????# #??????? | | ????????????????????# =||########## ##??????? | | ????????????????????### [%#;#[[[#[[### ###?????? | | ????????????????#===### %###[[[#[[##%! ""##????? | | ??????????? % ! """""???? | | ??????????? ^^^ <""##"???? | | ???????????"##==# #** #[[[# ##"""""#?????? | | ????????????????###?#** #########"""""#?????? | | ????????????????????#####"###???????##"####?????? | | ????????????????????????# #??????????#"#????????? | | ??????????????????????????????????????""????????? | | ????????????????????????????????????????????????? | | ????????????????????????????????????????????????? | | ????????????????????????????????????????????????? | | ????????????????????????????????????????????????? | | ????????????????????????????????????????????????? | +----------------------------------------------------+ Best States ------------- Heat Dissipation 51 Energy Generation 14 Energy Capacity 275 Matter Stores 300 Matter Capacity 300 Sight Range 16 Terrain Scan Density 10 Armor Coverage 225 Evasion (%) 40 Recoil Reduction 3 Item Schematics ----------------- Heat Sink | -6/Factory | Scanalyzed Robot Schematics ------------------ None Fabricated ------------ Nothing Repaired ---------- Nothing Studied --------- Adv. Treads | -6/Factory | Hacked Alien Tech Used ----------------- None Achievements -------------- Civilization 2243 You May Approach The Wall Challenges ------------ None Game ------ Seed SiegeScrapDetonator Manual? 0 Play Time 00:22:03 Cumulative 26.5 hours Start 2026.04.08 @ 14:21:44 End 2026.04.08 @ 14:42:17 Sessions 1 Manual Loads 0 Difficulty Rogue Special Mode None Game No. 70 Rogue 70 Adventurer 0 Explorer 0 Win Type - Total 1 Types 1/0/0/0/0/0/0/0/0/0 Lore% 37 Gallery% 29 Achievement% 23 Wizard Run 0 Options --------- Layout 1 ASCII 0 Keyboard 0 Movement Numpad Keybinds 0 Fullscreen 1 Font 24/Smallcaps Map View 50x35 Zoom Use 0% Tactical HUD 1 Map Filters NONE Filters NONE Steam 1 RUN: 24c0b4eb-d10a-4885-8a56-e586bca6faa0